[Event "Julius Baer Generation Cup Prelims 2022"]
[Site "Online"]
[Date "2022.09.14"]
[Round "12.8"]
[White "Wojtaszek, Radoslaw"]
[Black "Keymer, Vincent"]
[Result "0-1"]
[ECO "D11"]
[WhiteElo "2696"]
[BlackElo "2693"]
[Annotator "TA"]
[PlyCount "142"]
[EventDate "2022.09.12"]
[EventType "tourn"]
[EventCountry "NET"]
[SourceTitle "playchess.com"]
[Source "ChessBase"]
[SourceQuality "1"]
[TimeControl "900+10"]

{[%evp 9,142,-30,15,12,20,17,20,17,10,14,6,5,26,28,28,0,38,2,19,11,24,4,7,0,10,0,28,0,0,0,0,0,29,7,22,0,51,0,54,0,0,0,0,0,0,2,2,0,0,0,0,0,0,-19,0,-65,0,0,0,0,0,0,0,0,0,0,0,0,0,-40,-40,-40,-40,-40,-40,-124,-124,-125,-108,-125,-125,-226,-226,-259,-259,-259,-259,-259,-259,-259,-259,-260,-252,-395,-252,-413,-251,-250,-250,-925,-245,-245,-164,-164,-164,-965,-818,-1789,-1545,-1274,-238,-1122,-1100,-844,-742,-388,-254,-1903,-3844,-29964,-29968,-29975,-29966,-29966,-29967,-29976,-29977,-29977,-29978,-29981,-29977,-29977,-29971,-29978,-29979]} 1. d4 {[%emt 0:00:00]} Nf6 {[%emt 0:00:00]} 2. Nf3 {[%emt 0:00:02]} d5 {[%emt 0:00:05]} 3. g3 {[%emt 0:00:01]} c6 {[%emt 0:00:17]} 4. c4 {[%emt 0:00:05]} dxc4 {[%emt 0:00:04]} 5. a4 {[%emt 0:00:13]} Bf5 {[%emt 0:01:04][%cal Oc6c5] CPLX 2.2 45 (e7-e5) (=45)} 6. Bg2 {[%emt 0:01:20] CPLX 2.4. D11: Slav Defence: 3 Nf3 sidelines and 3...Nf6 4 e3 Bg4.} e6 {[%emt 0:00:42] CPLX 2.5 8 (Nb8-a6) (=27)} 7. O-O {[%emt 0:00:13] CPLX 2.6 3 (Nb1-c3) (=2)} Bb4 {[%emt 0:00:49] CPLX 2.3} 8. Ne5 {[%emt 0:00:12] CPLX 2.4 3 (Nb1-d2) (=2). The position is equal.} Be4 {[%emt 0:01:22] [#] BESTDEEP} 9. Bxe4 $146 {[%emt 0:00:27] CPLX 3.4} ({Predecessor:} 9. f3 Bxb1 10. Rxb1 c5 11. dxc5 Qc7 12. c6 Nxc6 {½-½ (12) Boos,O (2018)-Meyer,P (2318) Baden 2013}) 9... Nxe4 {[%emt 0:00:00] RECAPT} 10. Nxc4 {[%emt 0:00:01] CPLX 2.9} a5 {[%emt 0:00:23] CPLX 2.4 21 (0-0) (=12)} 11. Qd3 {[%emt 0:00:13] CPLX 2.5 0 (Nb1-a3) (=1)} Nd6 {[%emt 0:00:39] CPLX 2.8 0 (f7-f5) (=11)} 12. Ne5 {[%emt 0:00:02] CPLX 2.5 28 (Nb1-a3) (=5)} Nd7 {[%emt 0:00:24][%cal Bb8d7,Bd7f6,Bf6d5][%mdl 32] CPLX 2.5 38 (f7-f6) (=14)} 13. Nf3 {[%emt 0:00:02] CPLX 2.7 36 (Rf1-d1) (=9)} O-O {[%emt 0:00:25] BESTDEEP} 14. Bf4 {[%emt 0:00:06] CPLX 2.6 8 (Rf1-d1) (=9)} Nf6 {[%emt 0:00:29] CPLX 2.7 13 (Qd8-e7) (=13)} 15. Nc3 {[%emt 0:00:41] CPLX 2.4 20 (Bf4-d2) (=10)} Nd5 {[%emt 0:00:58] BESTDEEP} 16. Bd2 {[%emt 0:00:38] CPLX 3.2 7 (Bf4xd6) (=10)} f5 {[%emt 0:00:14] CPLX 2.9 10 (Qd8-e7) (=11)} 17. Ne5 {[%emt 0:00:53] CPLX 2.5 10 (h2-h4) (=10)} Ne4 {[%emt 0:00:39] CPLX 2.7 28 (Nd6-f7) (=13)} 18. Be1 {[%emt 0:00:50] CPLX 3.2 28 (Nc3xe4) (=11)} Ng5 {[%emt 0:01:32][%cal Be4g5,Bg5f7,Bf7d6,Bd6c4][%mdl 32] BESTDEEP} 19. h4 {[%emt 0:04:09] BESTDEEP} Nf7 {[%emt 0:00:10] CPLX 3.2} 20. Nf3 {[%emt 0:00:07] BESTDEEP} Nd6 {[%emt 0:01:40] CPLX 2.4 29 (Nd5-f6) (=12)} 21. Bd2 {[%emt 0:01:04] CPLX 2.5 22 (Nc3xd5) (=10)} Qe8 {[%emt 0:00:13] CPLX 2.5 15 (Qd8-e7) (=12)} 22. Ne5 {[%emt 0:00:24] CPLX 2.5 22 (Nc3xd5) (=11)} Qh5 {[%emt 0:01:05] RELBLUND 51 (Nd5-f6) (=14)} (22... Nf6 $11) 23. Rad1 {[%emt 0:00:16] CPLX 2.8 51 (e2-e3) (=13)} (23. e3 $14) 23... Rad8 {[%emt 0:00:32] RELBLUND 54 (Nd6-f7) (=16)} (23... Nf7 $11) 24. Qf3 {[%emt 0:00:57] RELBLUND 54 (Nc3xd5) (=15)} (24. Nxd5 $14 exd5 25. Bf4) 24... Qxf3 $11 {[%emt 0:00:46] EASY} 25. Nxf3 {[%emt 0:00:07] RECAPT} Nc4 {[%emt 0:00:18] CPLX 2.1} 26. Nxd5 {[%emt 0:00:05] CPLX 2.4} cxd5 {[%emt 0:01:10] RECAPT} 27. Bxb4 {[%emt 0:01:31] EASY} axb4 {[%emt 0:00:00] RECAPT} 28. b3 {[%emt 0:00:01] CPLX 2.0 2 (Rd1-c1) (=13)} Na5 {[%emt 0:00:04] CPLX 2.0} 29. Rd3 {[%emt 0:01:17] BESTDEEP} Rc8 $1 {[%emt 0:00:17] Inhibits Rc1. DEEPSTRONG} 30. Re3 {[%emt 0:00:14] BESTDEEP} Rfe8 {[%emt 0:00:23] BESTDEEP} 31. Rd1 {[%emt 0:00:57] CPLX 2.0 19 (Kg1-g2) (=12)} Rc3 {[%emt 0:01:48] CPLX 2.0 19 (Re8-e7) (=12)} 32. Rdd3 {[%emt 0:00:23] MISSDEEP-Re3xc3 65 (Re3xc3) (=14)} (32. Rxc3 $1 $11 bxc3 33. Rb1 (33. Rc1 Rc8 $15)) 32... Rec8 {[%emt 0:00:30] Black is more active. CPLX 2.1 65 (Rc3-c1) (=14)} (32... Rc1+ $15 33. Kg2 Nc4 $1 {[%mdl 512]} 34. bxc4 dxc4) 33. Rxe6 {[%emt 0:00:11] BESTDEEP} Nxb3 {[%emt 0:00:02] CPLX 2.1} 34. Rb6 {[%emt 0:00:15] CPLX 2.2} Nc1 {[%emt 0:00:02][%csl LRd3,LRe2] CPLX 2.2} 35. Rd2 {[%emt 0:00:54] BESTDEEP} b3 {[%emt 0:00:02] BESTDEEP} 36. Rxb7 {[%emt 0:00:12] CPLX 2.3} Rc2 {[%emt 0:00:42] CPLX 2.4} 37. Kf1 {[%emt 0:00:24] CPLX 2.6 0 (Kg1-g2) (=12)} h6 {[%emt 0:00:49] BESTDEEP} 38. a5 {[%emt 0:01:06] CPLX 2.5 0 (e2-e3) (=11)} Ra2 {[%emt 0:00:02] CPLX 2.6} 39. Rxb3 {[%emt 0:00:13] aiming for Rxa2. MISS-Rb7-b5 40 (Rb7-b5) (=12)} Rxd2 {[%emt 0:00:36] CPLX 2.5} 40. Nxd2 {[%emt 0:00:01] RECAPT} Nxb3 {[%emt 0:00:02] EASY} 41. Nxb3 {[%emt 0:00:00][%mdl 4096] Endgame KR-KN. RECAPT} Rc4 {[%emt 0:00:07] BESTDEEP} 42. Ke1 {[%emt 0:00:56] White is now going downhill. CPLX 2.3 84 (e2-e3) (=14)} (42. e3 $15) 42... Rb4 $17 {[%emt 0:00:11] CPLX 2.3=>BLUNDERREACT} 43. Nc5 {[%emt 0:00:14] CPLX 2.5} Rxd4 {[%emt 0:00:01] CPLX 2.4} 44. a6 {[%emt 0:00:14] a7 would kill now. CPLX 2.4 17 (e2-e3) (=13)} Rc4 {[%emt 0:00:01] DEEPSTRONG} 45. Nd7 {[%emt 0:00:09] CPLX 2.8 101 (Nc5-e6) (=16)} ({Avoid the trap} 45. a7 $2 Rc1+ 46. Kd2 Ra1 $19) (45. Ne6 $17) 45... Ra4 $19 {[%emt 0:00:14] CPLX 2.6} 46. Nb6 {[%emt 0:00:02] MISS-Nd7-c5 33 (Nd7-c5) (=16)} Ra1+ {[%emt 0:00:01] CPLX 2.9} ({Worse is} 46... Rxa6 47. Nxd5 Kf7 48. h5 $17) 47. Kd2 {[%emt 0:00:03] LEGAL} Rxa6 {[%emt 0:00:00] DEEPSTRONG} ({Weaker is} 47... d4 48. Nc8 $17) 48. Nd7 {[%emt 0:00:05] BESTDEEP} Kf7 {[%emt 0:00:03] CPLX 2.0} 49. Ne5+ {[%emt 0:00:11] CPLX 2.0} Ke6 {[%emt 0:00:10] CPLX 2.0 0 (Kf7-f6) (=9)} 50. Nd3 {[%emt 0:00:05] Nc5+ is the strong threat. CPLX 2.3 1 (Ne5-g6) (=15)} Kd6 {[%emt 0:00:17] Against Nc5. CPLX 2.0 8 (Ra6-a2) (=9)} 51. Ke3 {[%emt 0:00:01] CPLX 2.0 143 (e2-e3) (=17)} (51. e3 {was necessary.}) 51... Ra4 {[%emt 0:00:03] Threatens to win with ...g5. CPLX 2.1 143 (g7-g5) (=12)} 52. Kf3 $2 {[%emt 0:00:01] CPLX 2.2 161 (h4-h5) (=20)} (52. h5) 52... g5 {[%emt 0:00:12] CPLX 2.2} 53. hxg5 {[%emt 0:00:02] CPLX 2.5} hxg5 {[%emt 0:00:00][%cal Bh6g5,Bg5g4][%mdl 32] RECAPT} 54. Ke3 {[%emt 0:00:04] RELBLUND 400 (e2-e3) (=28)} (54. e3) 54... Re4+ $2 {[%emt 0:00:16] RELBLUND 400 (d5-d4) (=19)} (54... d4+ 55. Kd2 Ra2+ 56. Kd1 Ra1+ 57. Kd2 Kd5) 55. Kd2 {[%emt 0:00:04] EASY} d4 {[%emt 0:00:06] CPLX 2.1 81 (Re4-c4) (=20)} 56. Ne1 {[%emt 0:00:03] CPLX 2.1} Kd5 {[%emt 0:01:08] CPLX 2.0} 57. Nf3 $2 {[%emt 0:00:12] RELBLUND 400 (Kd2-d3) (=34)} (57. Kd3) 57... g4 {[%emt 0:00:11] CPLX 2.2=>BLUNDERREACT} 58. Nh4 {[%emt 0:00:03] CPLX 2.3 400 (Nf3-e1) (=41)} Re6 {[%emt 0:00:14] CPLX 2.1 244 (f5-f4) (=24)} 59. Kd3 {[%emt 0:00:23] BESTDEEP} Ke5 $2 {[%emt 0:00:14] RELBLUND 400 (Re6-a6) (=30)} (59... Ra6 {And now ...Ra3+ would win.} 60. Nxf5 Ke5) 60. Ng2 $2 {[%emt 0:00:35] RELBLUND 400 (e2-e3) (=47)} (60. e3) 60... Ra6 {[%emt 0:00:04] CPLX 2.1} 61. Nf4 {[%emt 0:00:05]} Ra3+ {[%emt 0:00:01]} 62. Kd2 {[%emt 0:00:04]} Kd6 {[%emt 0:00:02] Strongly threatening ...Kc6.} 63. Ng6 $2 {[%emt 0:00:32]} (63. Kc2) 63... Kd5 {[%emt 0:00:04]} 64. Nf4+ {[%emt 0:00:06]} Kc4 {[%emt 0:00:02] Black mates.} 65. Ke1 {[%emt 0:00:25]} Ra1+ {[%emt 0:00:28]} 66. Kd2 {[%emt 0:00:01]} Ra2+ {[%emt 0:00:00]} 67. Ke1 {[%emt 0:00:02]} Kc3 {[%emt 0:00:33][%cal Ra2a1]} 68. Nd5+ {[%emt 0:00:09] [#]} Kb3 $1 {[%emt 0:00:01]} 69. Kf1 {[%emt 0:00:23]} Ra5 {[%emt 0:00:10]} 70. Nf4 {[%emt 0:00:06]} Kc2 {[%emt 0:00:02]} 71. Kg2 {[%emt 0:00:16]} Re5 {[%emt 0:00:08] Weighted Error Value: White=0.61/Black=0.37} 0-1

[Event "Julius Baer Generation Cup Prelims 2022"]
[Site "Online"]
[Date "2022.09.14"]
[Round "14.7"]
[White "Wojtaszek, Radoslaw"]
[Black "Carlsen, Magnus"]
[Result "0-1"]
[ECO "D67"]
[WhiteElo "2696"]
[BlackElo "2861"]
[Annotator "TA"]
[PlyCount "104"]
[EventDate "2022.09.12"]
[EventType "tourn"]
[EventCountry "NET"]
[SourceTitle "playchess.com"]
[Source "ChessBase"]
[SourceQuality "1"]
[TimeControl "900+10"]

{[%evp 23,104,30,66,50,50,47,58,12,40,35,63,19,23,25,40,35,26,39,30,43,59,0,0,0,17,10,14,8,10,3,8,7,8,0,13,10,8,0,21,0,0,0,0,0,0,0,0,0,0,0,-1,-1,-7,-8,0,0,0,0,0,-158,-150,-187,-179,-298,-276,-495,-487,-454,-464,-588,-539,-827,-752,-5413,-4697,-29975,-29976,-29975,-29976,-29983,-29983,-29982,-29983]} 1. d4 {[%emt 0:00:00]} d5 {[%emt 0:00:00]} 2. c4 {[%emt 0:00:02]} e6 {[%emt 0:00:02]} 3. Nf3 {[%emt 0:00:02]} c6 {[%emt 0:00:02]} 4. Bg5 {[%emt 0:00:38]} Nf6 {[%emt 0:00:08]} 5. Nc3 {[%emt 0:00:03]} Be7 {[%emt 0:00:08]} 6. e3 {[%emt 0:00:03]} Nbd7 {[%emt 0:00:04]} 7. Bd3 {[%emt 0:00:05]} dxc4 {[%emt 0:00:03]} 8. Bxc4 {[%emt 0:00:01]} Nd5 {[%emt 0:00:01]} 9. Bxe7 {[%emt 0:00:42]} Qxe7 {[%emt 0:00:00]} 10. Rc1 {[%emt 0:00:31]} O-O {[%emt 0:01:06]} 11. O-O {[%emt 0:00:02] 11.Ne4 is vanishing.} Nxc3 {[%emt 0:01:30]} 12. Rxc3 {[%emt 0:00:02]} b6 {[%emt 0:00:01]} 13. Bd3 {[%emt 0:00:37] D67: Queen's Gambit Declined: Classical Main Line with 9...Nd5.} c5 {[%emt 0:00:06]} 14. Qc2 {[%emt 0:00:25]} h6 {[%emt 0:00:06]} 15. Bh7+ {[%emt 0:00:47] White is slightly better.} Kh8 {[%emt 0:00:02]} 16. Be4 {[%emt 0:00:01]} Rb8 {[%emt 0:00:01]} 17. Rc1 {[%emt 0:00:50][%cal Rd4c5] [#]} a5 $146 {[%emt 0:00:06]} ({Predecessor:} 17... f5 18. Bc6 Bb7 19. Bxb7 Rxb7 20. b4 cxd4 21. Nxd4 Ne5 22. Rc8 Re8 23. Qb3 Kh7 24. Rxe8 Qxe8 25. Nxe6 {1-0 (30) Podgaets,M (2484)-Otero Acosta,D (2403) Havana 1999}) 18. h3 {[%emt 0:01:26]} Rd8 {[%emt 0:00:09]} 19. a3 {[%emt 0:00:31][%cal Ob2b4]} Ba6 {[%emt 0:01:19]} 20. Bc6 {[%emt 0:00:47]} cxd4 {[%emt 0:01:15]} 21. Nxd4 {[%emt 0:00:12]} Rbc8 {[%emt 0:00:14]} 22. Be4 {[%emt 0:03:04]} (22. Qb1 $14) 22... Rxc3 $11 {[%emt 0:00:06]} 23. Qxc3 {[%emt 0:00:01]} Qf8 {[%emt 0:03:01]} 24. Rd1 {[%emt 0:04:41] [#] And now Nc6 would win.} Nf6 {[%emt 0:01:14]} 25. Bf3 {[%emt 0:00:57]} Rc8 {[%emt 0:00:02] Against Qc7} 26. Qd2 {[%emt 0:00:35]} Rd8 {[%emt 0:01:28] ...e5 is the strong threat.} 27. Qe1 {[%emt 0:00:21]} Kg8 {[%emt 0:01:02]} 28. b4 {[%emt 0:00:22]} axb4 {[%emt 0:00:03]} 29. axb4 {[%emt 0:00:00]} Bc4 {[%emt 0:00:07]} 30. Nc6 {[%emt 0:00:37]} Rd6 {[%emt 0:00:35]} 31. Ne5 {[%emt 0:00:34] Threatens to win with Rxd6.} Rxd1 {[%emt 0:00:02]} 32. Qxd1 {[%emt 0:00:02]} Bd5 {[%emt 0:00:01]} 33. Qd4 {[%emt 0:00:21]} Bxf3 {[%emt 0:00:03]} 34. gxf3 {[%emt 0:00:06][%mdl 4096] Endgame KQN-KQN} Nd5 {[%emt 0:00:03]} 35. b5 {[%emt 0:00:06]} Qa3 {[%emt 0:00:15]} 36. Kg2 {[%emt 0:00:55]} Qb3 {[%emt 0:00:13]} 37. Qd3 {[%emt 0:00:28]} (37. Qa1 {keeps more tension.} Qc2 38. Qd4 Qb1 39. Qd3) 37... Qxd3 {[%emt 0:00:41]} 38. Nxd3 {[%emt 0:00:00] KN-KN} Kf8 {[%emt 0:00:01]} 39. Ne5 {[%emt 0:00:08]} Ke7 {[%emt 0:00:01]} 40. Nc4 {[%emt 0:00:28]} Kd7 {[%emt 0:00:01]} 41. f4 $2 {[%emt 0:00:15] [#]} ({White should play} 41. e4 $11 Nf4+ 42. Kg3 Ne2+ 43. Kg4) 41... Kc7 $1 $17 {[%emt 0:00:02]} 42. Kf3 {[%emt 0:00:02]} Nc3 {[%emt 0:00:02]} 43. Na3 {[%emt 0:00:14]} (43. Ne5 $142) 43... Kd6 $19 {[%emt 0:00:03]} 44. Nc4+ $2 {[%emt 0:00:10]} (44. e4 {was called for.}) 44... Kc5 {[%emt 0:00:24]} 45. Ne5 {[%emt 0:00:00]} f5 {[%emt 0:01:00]} 46. Nd7+ {[%emt 0:00:20]} Kxb5 {[%emt 0:00:10]} 47. Nf8 {[%emt 0:00:01]} Kc4 {[%emt 0:00:01] Strongly threatening ...b5.} 48. Nxe6 {[%emt 0:00:01]} b5 {[%emt 0:00:00][%cal Bb6b5,Bb5b4,Bb4b3,Bb3b2][%mdl 32]} 49. Nxg7 {[%emt 0:00:22]} b4 {[%emt 0:00:01] Black mates.} 50. Nxf5 {[%emt 0:00:01]} b3 {[%emt 0:00:02]} 51. Nd4 {[%emt 0:00:02]} b2 {[%emt 0:00:02]} 52. Nc2 {[%emt 0:00:05]} Nb5 {[%emt 0:00:04] Weighted Error Value: White=0.64/Black=0.03 (flawless)} 0-1